bitfinex/quotes_BTCUSD_20240815
["timestamp","ask_amount","ask_price","bid_price","bid_amount"]
[1723747278614,0.00090421,57845.0,57844.0,0.75518141]
[1723747279022,0.00190421,57845.0,57844.0,0.76018141]
[1723747279253,0.00190421,57845.0,57844.0,1.45569541]
[1723747279379,0.00090421,57845.0,57844.0,1.54769541]
[1723747279622,0.00090421,57845.0,57844.0,0.67930341]
[1723747279822,0.00090421,57845.0,57844.0,1.20893841]
[1723747279823,0.00190421,57845.0,57844.0,1.20893841]
[1723747280272,0.00190421,57845.0,57844.0,0.69030341]
[1723747280948,0.00190421,57845.0,57844.0,0.59630341]
[1723747281152,0.00090421,57845.0,57844.0,0.57930341]
[1723747281690,0.00190421,57845.0,57844.0,0.60230341]
[1723747281812,0.00190421,57845.0,57844.0,0.207]
[1723747282051,0.00190421,57845.0,57844.0,0.193]
[1723747282052,0.00090421,57845.0,57844.0,0.193]
[1723747282268,0.17245875,57845.0,57844.0,0.017]
[1723747282468,0.71265308,57845.0,57844.0,0.011]
[1723747282731,1.05840408,57845.0,57844.0,0.011]
[1723747282931,1.05840408,57845.0,57844.0,0.009]
[1723747282932,0.79637963,57845.0,57844.0,0.009]
[1723747283140,1.48888163,57845.0,57844.0,0.023]
[1723747283341,1.89093263,57845.0,57844.0,0.023]
[1723747283511,2.33668363,57845.0,57844.0,1e-08]
[1723747284050,1.99664593,57845.0,57844.0,1e-08]
[1723747284254,1.99664589,57845.0,57844.0,1e-08]
[1723747284461,1.99093263,57845.0,57844.0,0.00300001]
[1723747284660,1.996646,57845.0,57844.0,0.00300001]
[1723747284878,1.996646,57845.0,57844.0,1e-08]
[1723747284879,2.342397,57845.0,57844.0,1e-08]
[1723747285085,1.210296,57837.0,57836.0,0.000821]
[1723747285312,2.22602781,57837.0,57836.0,0.000821]
[1723747285966,2.63384091,57837.0,57836.0,0.000821]
[1723747287095,2.64584091,57837.0,57836.0,0.001821]
[1723747287821,2.64584091,57837.0,57836.0,0.002821]
[1723747287822,2.22626464,57837.0,57836.0,0.002821]
[1723747288089,2.37381918,57837.0,57836.0,0.000821]
[1723747288285,2.36810508,57837.0,57836.0,0.000821]
[1723747288486,2.39410508,57837.0,57836.0,0.001821]
[1723747288707,2.39981928,57837.0,57836.0,0.001821]
[1723747288995,1.22705254,57837.0,57836.0,0.001821]
[1723747289148,0.78125354,57837.0,57836.0,0.001821]
[1723747289496,0.37045354,57837.0,57836.0,0.001821]
[1723747289703,1.06205154,57837.0,57836.0,0.001821]
[1723747289839,0.19755454,57837.0,57836.0,0.001821]
[1723747290047,0.46749739,57837.0,57836.0,0.001821]
[1723747290487,0.45549739,57837.0,57836.0,0.000821]
[1723747290698,0.29359839,57837.0,57836.0,0.001821]
[1723747291229,0.18255454,57837.0,57836.0,0.001821]
[1723747291409,0.19655454,57837.0,57836.0,0.002821]
[1723747292064,0.18255454,57837.0,57836.0,0.001821]
[1723747292244,0.24438849,57837.0,57836.0,0.002821]
[1723747292452,0.23338849,57837.0,57836.0,0.001821]
[1723747292657,0.18055454,57837.0,57836.0,0.001821]
[1723747292864,0.18487764,57837.0,57836.0,0.001821]
[1723747293065,0.78935291,57837.0,57836.0,0.001821]
[1723747293286,1.88915091,57837.0,57836.0,0.000821]
[1723747293510,1.54335191,57837.0,57836.0,0.000821]
[1723747293743,1.71490645,57837.0,57836.0,0.000821]
[1723747293943,2.45160545,57837.0,57836.0,0.001821]
[1723747294147,2.4473196,57837.0,57836.0,0.000821]
[1723747294361,2.4473196,57837.0,57826.0,0.00822]
[1723747294362,1.318187,57831.0,57826.0,0.00822]
[1723747294591,1.92672807,57831.0,57826.0,0.00822]
[1723747294812,2.41114804,57831.0,57826.0,0.00822]
[1723747295022,2.582707,57831.0,57826.0,0.00822]
[1723747295230,1.43519,57823.0,57822.0,0.00821]
[1723747295443,2.10704454,57823.0,57822.0,0.00821]
[1723747295656,2.24974757,57823.0,57822.0,0.00821]
[1723747295858,2.2390319,57823.0,57822.0,0.00821]
[1723747296557,2.2530319,57823.0,57822.0,0.00921]
[1723747296984,2.3093319,57823.0,57822.0,0.00921]
[1723747297222,2.6652149,57823.0,57822.0,0.00921]
[1723747297432,2.4363305,57823.0,57822.0,0.00921]
[1723747297759,2.4503305,57823.0,57822.0,0.00921]
[1723747297987,1.96746014,57823.0,57822.0,0.00921]
[1723747298185,0.71337854,57823.0,57822.0,0.00921]
[1723747298392,0.19955454,57823.0,57822.0,0.00921]
[1723747298793,0.19955454,57823.0,57822.0,0.40341]
[1723747299022,0.19955454,57823.0,57822.0,0.40241]
[1723747299023,0.17155454,57823.0,57822.0,0.40241]
[1723747299225,0.17155454,57823.0,57822.0,0.00821]
[1723747299395,0.014,57823.0,57822.0,0.18991]
[1723747299609,0.014,57823.0,57822.0,0.58411]
[1723747300511,0.028,57823.0,57822.0,0.58411]
[1723747300707,0.00090421,57845.0,57824.0,0.3942]
[1723747300907,0.51466362,57839.0,57824.0,0.3942]
[1723747301131,0.52163447,57844.0,57822.0,0.00821]
[1723747301132,0.17155454,57838.0,57825.0,0.08577727]
[1723747301337,0.17155454,57839.0,57827.0,0.3942]
[1723747302324,0.01,57838.0,57827.0,0.3942]
[1723747303133,0.01,57838.0,57829.0,0.3942]
[1723747303335,0.01,57838.0,57831.0,0.08577727]
[1723747303533,0.01,57838.0,57832.0,0.5759]
[1723747304164,0.006,57839.0,57832.0,0.5759]
[1723747304365,0.006,57839.0,57833.0,0.3942]
[1723747304583,0.00090421,57844.0,57833.0,0.3942]
[1723747304817,0.009,57839.0,57833.0,0.3942]
[1723747304958,0.17155454,57843.0,57833.0,0.3942]
[1723747305154,0.00090421,57844.0,57833.0,0.3942]
[1723747305380,0.00090421,57844.0,57834.0,0.1817]
[1723747305582,0.00090421,57844.0,57837.0,0.345798]
[1723747305858,0.00090421,57844.0,57839.0,0.3942]
[1723747306266,0.00090421,57844.0,57840.0,0.17289]
[1723747306468,0.00090421,57844.0,57843.0,0.172881]
[1723747306673,0.00090421,57844.0,57843.0,0.5759]
[1723747307293,0.00090421,57844.0,57843.0,0.748781]
[1723747307489,0.00090421,57844.0,57843.0,0.5759]
[1723747307692,0.17245875,57844.0,57841.0,0.00923833]
[1723747307920,0.08577727,57842.0,57835.0,0.1817]
[1723747308124,0.17155454,57841.0,57835.0,0.1817]
[1723747308293,0.17155454,57841.0,57839.0,0.002]
[1723747308519,0.00090421,57844.0,57840.0,0.3942]
[1723747308784,0.17155454,57843.0,57835.0,0.5759]
[1723747308985,0.17155454,57843.0,57841.0,0.001]
[1723747309189,0.17155454,57843.0,57839.0,0.006]
[1723747309394,0.09009982,57842.0,57835.0,0.5759]
[1723747309596,0.35244254,57841.0,57839.0,0.001]
[1723747309809,0.17955454,57841.0,57840.0,0.001]
[1723747310034,0.35244154,57841.0,57840.0,0.001]
[1723747310238,0.35244154,57841.0,57830.0,0.1817]
[1723747310239,0.172917,57831.0,57830.0,0.1817]
[1723747310443,0.26208726,57841.0,57830.0,0.1817]
[1723747310444,0.172907,57835.0,57830.0,0.1817]
[1723747310646,0.17155454,57833.0,57830.0,0.1817]
[1723747311241,0.008,57841.0,57830.0,0.1817]
[1723747311445,0.08668148,57844.0,57830.0,0.1817]
[1723747311446,0.08577727,57838.0,57830.0,0.1817]
[1723747311577,0.172906,57835.0,57830.0,0.1817]
[1723747311779,0.172911,57833.0,57830.0,0.1817]
[1723747312012,0.172925,57829.0,57824.0,0.1817]
[1723747312210,0.17155454,57832.0,57824.0,0.1817]
[1723747312427,0.00432345,57831.0,57824.0,0.1817]
[1723747312627,0.60885272,57831.0,57830.0,0.001]
[1723747312826,0.32254053,57831.0,57822.0,0.00821]
[1723747313125,1.21059,57823.0,57822.0,0.00821]
[1723747313327,0.864707,57823.0,57822.0,0.00821]
[1723747313528,1.58789,57823.0,57822.0,0.00821]
[1723747313731,1.265007,57823.0,57822.0,0.00821]
[1723747313933,0.08577727,57831.0,57822.0,0.00821]
[1723747313934,0.2246,57839.0,57822.0,0.40241]
[1723747314141,0.13560862,57844.0,57822.0,0.40241]
[1723747314142,0.21580129,57837.0,57823.0,0.1817]
[1723747314346,0.21580129,57837.0,57824.0,0.003]
[1723747314697,0.172915,57832.0,57824.0,0.003]
[1723747314915,0.17587809,57831.0,57824.0,0.003]
[1723747315090,0.17587809,57831.0,57824.0,0.006]
[1723747315320,0.17587809,57831.0,57824.0,0.003]
[1723747315524,0.17587809,57831.0,57823.0,0.1817]
[1723747315700,0.17587809,57831.0,57824.0,0.001]
[1723747315930,0.08577727,57825.0,57823.0,0.1817]
[1723747316150,0.17155454,57825.0,57823.0,0.1817]
[1723747316368,0.01,57831.0,57823.0,0.1817]
[1723747316494,0.17155454,57830.0,57823.0,0.1817]
[1723747317595,0.172931,57827.0,57824.0,0.001]
[1723747317796,0.12597983,57829.0,57824.0,0.001]
[1723747317797,0.17587821,57826.0,57824.0,0.001]
[1723747318178,0.17587821,57826.0,57823.0,0.1817]
[1723747318383,0.17587821,57826.0,57823.0,0.1827]
[1723747318877,0.172938,57824.0,57823.0,0.001]
[1723747319030,0.934524,57823.0,57822.0,0.00821]
[1723747319231,1.78533881,57823.0,57822.0,0.00821]
[1723747319440,0.519048,57798.0,57780.0,0.397]
[1723747319609,0.519048,57798.0,57794.0,0.00822]
[1723747319610,1.69115727,57798.0,57794.0,0.00822]
[1723747319820,1.344573,57798.0,57782.0,0.1933]
[1723747320057,1.03419573,57798.0,57782.0,0.1933]
[1723747320465,0.68816373,57798.0,57782.0,0.1933]
[1723747320643,0.71360254,57798.0,57782.0,0.1933]
[1723747320868,1.05963454,57798.0,57782.0,0.1933]
[1723747321068,0.71360254,57798.0,57782.0,0.1933]
[1723747321395,1.69993454,57798.0,57782.0,0.1933]
[1723747321607,1.69993454,57798.0,57778.0,0.00823]
[1723747321608,2.14596654,57798.0,57778.0,0.00823]
[1723747321813,2.32052108,57798.0,57778.0,0.00823]
[1723747322018,1.23230254,57798.0,57788.0,0.397]
[1723747322190,0.76327054,57798.0,57788.0,0.397]
[1723747322393,1.10930254,57798.0,57788.0,0.397]
[1723747322591,1.10630254,57798.0,57788.0,0.397]
[1723747322796,0.17155454,57798.0,57797.0,0.194121]
[1723747322972,0.17155454,57798.0,57797.0,0.591121]
[1723747322973,0.007,57798.0,57797.0,0.591121]
[1723747323818,0.007,57798.0,57797.0,0.76414]
[1723747324235,0.007,57798.0,57797.0,0.592121]
[1723747324236,0.006,57798.0,57797.0,0.592121]
[1723747324660,0.01,57798.0,57797.0,0.592121]
[1723747324876,0.172993,57806.0,57797.0,0.596121]
[1723747325111,0.00432543,57811.0,57797.0,0.596121]
[1723747325112,0.001,57798.0,57797.0,0.596121]
[1723747325313,0.002,57798.0,57797.0,0.601121]
[1723747325528,0.001,57798.0,57797.0,1.461216]
[1723747325734,0.172921,57830.0,57810.0,0.3758]
[1723747325939,0.3786,57832.0,57810.0,0.63455727]
[1723747325940,0.00090421,57811.0,57810.0,0.63455727]
[1723747326139,0.00090421,57811.0,57810.0,0.98051727]
[1723747326357,0.00090421,57811.0,57810.0,1.42647727]
[1723747326576,0.51466362,57831.0,57823.0,0.3758]
[1723747326784,0.51466362,57831.0,57823.0,0.63451627]
[1723747326987,0.00090421,57840.0,57824.0,0.172938]
[1723747327198,0.00090421,57840.0,57823.0,0.46157727]
[1723747327199,0.51466362,57837.0,57823.0,0.46157727]
[1723747327400,0.17155454,57836.0,57823.0,0.46157727]
[1723747327653,0.17155454,57836.0,57823.0,0.80745927]
[1723747327860,0.17155454,57836.0,57824.0,0.172936]
[1723747328068,0.17155454,57836.0,57823.0,0.46157727]
[1723747328270,0.17155454,57836.0,57824.0,0.001]
[1723747328472,0.19449521,57836.0,57824.0,0.001]
[1723747328688,0.19449521,57836.0,57823.0,0.3758]
[1723747328894,0.17655454,57836.0,57823.0,0.3758]
[1723747329422,0.17655454,57836.0,57823.0,0.38524156]
[1723747330349,0.17955454,57836.0,57823.0,0.38524156]
[1723747330527,0.18055454,57836.0,57823.0,0.38524156]
[1723747330728,0.08577727,57835.0,57823.0,0.38524156]
[1723747330958,0.17155454,57834.0,57823.0,0.38524156]
[1723747331333,0.001,57836.0,57823.0,0.38524156]
[1723747331532,0.17155454,57835.0,57823.0,0.38524156]
[1723747332164,0.17155454,57835.0,57823.0,0.38624156]
[1723747332369,0.002,57834.0,57823.0,0.38624156]
[1723747332895,0.17155454,57833.0,57823.0,0.38624156]
[1723747333016,0.00432359,57832.0,57823.0,0.3768]
[1723747333216,0.08777727,57834.0,57823.0,0.3768]
[1723747333217,0.17155454,57831.0,57823.0,0.3768]
[1723747333429,0.002,57834.0,57823.0,0.3758]
[1723747333631,0.002,57834.0,57827.0,0.1871]
[1723747333842,0.00090421,57840.0,57833.0,0.3951]
[1723747334687,0.00090421,57840.0,57835.0,0.172904]
[1723747334901,0.00090421,57840.0,57833.0,0.3951]
[1723747334902,0.08577727,57839.0,57833.0,0.3951]
[1723747335087,0.00866815,57838.0,57833.0,0.3981]
[1723747335300,0.17587707,57837.0,57833.0,0.003]
[1723747335477,0.17155454,57837.0,57833.0,0.003]
[1723747336529,0.0258236,57836.0,57829.0,0.1962]
[1723747336730,0.0258236,57836.0,57801.0,0.0346]
[1723747336731,0.08577727,57833.0,57823.0,0.1815]
[1723747336943,0.204626,57832.0,57823.0,0.1815]
[1723747337144,0.17155454,57832.0,57823.0,0.1815]
[1723747337916,0.0258236,57836.0,57823.0,0.1815]
[1723747338121,0.00090421,57839.0,57834.0,0.4072]
[1723747338893,0.00090421,57839.0,57835.0,0.1933]
[1723747340506,0.00090421,57839.0,57835.0,0.1963]
[1723747341111,0.00522649,57839.0,57835.0,0.1963]
[1723747341315,0.00090421,57839.0,57835.0,0.1963]
[1723747342068,0.08577727,57836.0,57835.0,0.1963]
[1723747342272,0.172897,57838.0,57835.0,0.1963]
[1723747342476,0.43158227,57836.0,57835.0,0.003]
[1723747342745,0.35637861,57836.0,57835.0,0.003]
[1723747342921,0.25733181,57836.0,57835.0,0.003]
[1723747343139,0.17155454,57836.0,57829.0,0.4072]
[1723747343315,0.00090421,57839.0,57835.0,0.003]
[1723747343521,0.001,57836.0,57835.0,0.009]
[1723747343739,0.44867011,57836.0,57835.0,0.009]
[1723747343942,0.82887011,57836.0,57835.0,0.003]
[1723747344164,0.57019084,57836.0,57828.0,0.1933]
[1723747344373,0.001,57836.0,57829.0,0.006]
[1723747344624,0.001,57836.0,57835.0,0.172905]
[1723747344849,0.00190421,57839.0,57838.0,0.172896]
[1723747345098,0.00190421,57839.0,57838.0,0.92264623]
[1723747345547,0.00190421,57839.0,57838.0,0.4005]
[1723747345882,0.00090421,57839.0,57838.0,0.4005]
[1723747346080,0.00090421,57839.0,57836.0,0.1819]
[1723747346309,0.08577727,57838.0,57836.0,0.1819]
[1723747346557,0.00090421,57839.0,57836.0,0.1819]
[1723747346793,0.00190421,57839.0,57838.0,0.007]
[1723747347019,0.00090421,57839.0,57836.0,0.1819]
[1723747347240,0.00190421,57839.0,57836.0,0.1819]
[1723747347594,0.00169611,57839.0,57836.0,0.1849]
[1723747348201,0.00169611,57839.0,57836.0,0.1819]
[1723747348662,0.00169611,57839.0,57836.0,0.1829]
[1723747349075,0.00169611,57839.0,57837.0,0.4005]
[1723747349615,0.00169611,57839.0,57838.0,0.69024354]
[1723747349813,0.00169611,57839.0,57838.0,1.27264354]
[1723747350057,0.00169611,57839.0,57838.0,1.61843654]
[1723747350058,0.00069611,57839.0,57838.0,1.61843654]
[1723747350329,0.00090421,57840.0,57839.0,1.792654]
[1723747350456,0.00090421,57844.0,57843.0,1.101044]
[1723747350673,0.00090421,57844.0,57843.0,2.11088527]
[1723747350865,0.00090421,57845.0,57844.0,0.864392]
[1723747351071,0.00090421,57845.0,57844.0,2.01086427]
[1723747351267,0.0738739,57854.0,57853.0,0.172851]
[1723747351268,0.04924926,57854.0,57853.0,0.172851]
[1723747351498,0.0009053,57862.0,57853.0,0.172851]
[1723747351499,0.04924926,57858.0,57857.0,1.100918]
[1723747351668,0.09940383,57862.0,57861.0,0.172827]
[1723747351669,0.05015456,57862.0,57861.0,0.172827]
[1723747351871,0.05015456,57862.0,57861.0,0.62916073]
[1723747352071,0.0009053,57862.0,57861.0,0.97354227]
[1723747352274,0.0009053,57862.0,57861.0,1.31919727]
[1723747352478,0.0009053,57862.0,57861.0,1.66485227]
[1723747352677,0.0009053,57862.0,57861.0,0.97354227]
[1723747352880,0.0009053,57862.0,57861.0,1.31919727]
[1723747353280,0.0019053,57862.0,57861.0,1.32719727]
[1723747353494,0.0009053,57862.0,57861.0,0.97354227]
[1723747353720,0.0009053,57862.0,57861.0,1.41919727]
[1723747353905,0.0019053,57862.0,57861.0,0.87995454]
[1723747354125,0.0019053,57862.0,57861.0,0.7084]
[1723747354316,0.0019053,57862.0,57861.0,0.6084]
[1723747354510,0.0019053,57862.0,57861.0,0.5944]
[1723747354737,0.0019053,57862.0,57861.0,0.64374406]
[1723747354942,0.0019053,57862.0,57861.0,0.65774406]
[1723747355142,0.0019053,57862.0,57861.0,0.6084]
[1723747355497,0.0019053,57862.0,57861.0,0.014]
[1723747355498,0.0009053,57862.0,57861.0,0.014]
[1723747355697,0.0009053,57862.0,57861.0,0.026]
[1723747355971,0.0019053,57862.0,57861.0,0.014]
[1723747356171,0.0019053,57862.0,57855.0,0.1819]
[1723747356327,0.17445984,57862.0,57861.0,0.012]
[1723747356529,0.17445984,57862.0,57861.0,0.025]
[1723747356530,0.0029053,57862.0,57861.0,0.025]
[1723747356727,0.0009053,57862.0,57861.0,0.013]
[1723747356929,0.0009053,57862.0,57861.0,0.004]
[1723747357433,0.0009053,57862.0,57861.0,0.009]
[1723747358100,0.74286777,57862.0,57861.0,0.009]
[1723747358252,0.69093284,57862.0,57861.0,0.009]
[1723747358455,0.34528384,57862.0,57861.0,0.009]
[1723747358661,0.69093284,57862.0,57861.0,0.009]
[1723747359114,0.17245984,57862.0,57861.0,0.009]
[1723747359560,0.34528384,57862.0,57861.0,0.009]
[1723747359785,0.69093284,57862.0,57861.0,0.009]
[1723747360009,1.09023284,57862.0,57861.0,0.009]
[1723747360185,1.58804675,57862.0,57861.0,0.009]
[1723747360487,0.89174875,57862.0,57861.0,0.009]
[1723747360688,0.73958384,57862.0,57861.0,0.009]
[1723747361356,0.3993,57862.0,57861.0,0.009]
[1723747361562,0.10797229,57892.0,57861.0,0.4222]
[1723747361563,0.3993,57874.0,57861.0,0.4222]
[1723747361803,0.17155454,57872.0,57862.0,0.1819]
[1723747362425,0.345537,57881.0,57862.0,0.26767727]
[1723747362631,0.3993,57880.0,57862.0,0.1819]
[1723747362832,0.25733181,57877.0,57862.0,0.1819]
[1723747363103,0.25733181,57877.0,57862.0,0.1829]
[1723747363104,0.172791,57874.0,57862.0,0.1829]
[1723747363278,0.008,57872.0,57862.0,0.1829]
[1723747363490,0.008,57872.0,57862.0,0.1819]
[1723747363692,0.008,57872.0,57862.0,0.1839]
[1723747364022,0.17155454,57874.0,57863.0,0.04934406]
[1723747364223,0.17155454,57874.0,57862.0,0.1819]
[1723747364534,0.17155454,57874.0,57863.0,0.04934406]
[1723747364535,0.17587468,57874.0,57863.0,0.04934406]
[1723747364737,0.172793,57873.0,57862.0,0.1819]
[1723747364936,0.17155454,57874.0,57862.0,0.1819]
[1723747365351,0.34866868,57873.0,57862.0,0.1829]
[1723747365584,0.08577727,57871.0,57862.0,0.1829]
[1723747365808,0.43133827,57877.0,57862.0,0.1819]
[1723747365809,0.17155454,57870.0,57862.0,0.1819]
[1723747366025,0.17155454,57870.0,57862.0,0.1829]
[1723747366656,0.17155454,57870.0,57862.0,0.1839]
[1723747366982,0.172787,57875.0,57862.0,0.2829]
[1723747367179,0.005,57870.0,57862.0,0.2829]
[1723747367669,0.005,57870.0,57862.0,0.36867727]
[1723747367878,0.005,57870.0,57869.0,1.112412]
[1723747368076,0.005,57870.0,57869.0,1.72957454]
[1723747368275,0.00090421,57878.0,57869.0,1.90237854]
[1723747368455,0.00090421,57878.0,57877.0,0.51834]
[1723747368674,0.00090421,57878.0,57877.0,0.86555454]
[1723747368833,0.00090421,57878.0,57877.0,1.38389454]
[1723747369257,0.00090421,57878.0,57877.0,0.694]
[1723747369955,0.00090421,57878.0,57877.0,0.62]
[1723747369956,0.00190421,57878.0,57877.0,0.62]
[1723747370459,0.00090421,57878.0,57877.0,0.1826]
[1723747370810,0.00090421,57878.0,57877.0,0.1966]
[1723747372554,0.00190421,57878.0,57877.0,0.2086]
[1723747373956,0.00190421,57878.0,57877.0,1.28839454]
[1723747374209,0.00190421,57878.0,57877.0,2.07951454]
[1723747374440,0.00190421,57878.0,57877.0,1.73395454]
[1723747375494,0.00190421,57878.0,57877.0,2.06551454]
[1723747375612,0.00190421,57878.0,57877.0,1.71995454]
[1723747375814,0.00090421,57878.0,57877.0,1.72195454]
[1723747376215,0.00090421,57878.0,57877.0,0.6865]
[1723747376586,0.00090421,57878.0,57877.0,0.1966]
[1723747376802,0.00090421,57878.0,57877.0,0.028]
[1723747377004,0.73443575,57878.0,57877.0,0.028]
[1723747377208,1.49898733,57878.0,57877.0,0.014]
[1723747377623,0.73443575,57878.0,57864.0,0.1899]
[1723747377829,0.26165193,57877.0,57864.0,0.1899]
[1723747378385,0.172786,57875.0,57864.0,0.1899]
[1723747378514,0.00432017,57875.0,57864.0,0.1899]
[1723747378718,0.09009724,57877.0,57864.0,0.1899]
[1723747378921,0.172787,57875.0,57864.0,0.1899]
[1723747379188,0.17710904,57874.0,57864.0,0.1899]
[1723747379365,0.00431997,57875.0,57864.0,0.1909]
[1723747379521,0.17155454,57874.0,57864.0,0.1909]
[1723747379724,0.00432017,57873.0,57864.0,0.1899]
[1723747379927,0.17587473,57874.0,57864.0,0.1899]
[1723747380131,0.17155454,57874.0,57864.0,0.1909]
[1723747380447,0.00432012,57873.0,57864.0,0.1919]
[1723747380699,0.08577727,57870.0,57864.0,0.001]
[1723747380899,0.518448,57865.0,57864.0,0.001]
[1723747381073,0.17155454,57865.0,57864.0,0.001]
[1723747381551,0.17155454,57865.0,57864.0,0.002]
[1723747382781,0.17155454,57865.0,57864.0,0.001]
[1723747382984,0.17155454,57865.0,57862.0,0.1]
[1723747384095,0.18055454,57865.0,57862.0,0.101]
[1723747384665,0.18555454,57865.0,57864.0,0.001]
[1723747384878,0.014,57865.0,57864.0,0.001]
[1723747385050,0.023,57865.0,57864.0,0.001]
[1723747385842,0.023,57865.0,57863.0,0.3939]
[1723747385843,0.009,57865.0,57863.0,0.3939]
[1723747386044,0.021,57865.0,57863.0,0.3939]
[1723747386253,0.021,57865.0,57864.0,0.356919]
[1723747386254,0.012,57865.0,57864.0,0.356919]
[1723747386455,0.012,57865.0,57864.0,0.52847354]
[1723747386662,0.006,57865.0,57864.0,0.2841]
[1723747386887,0.006,57865.0,57864.0,0.456919]
[1723747387098,0.00090421,57871.0,57864.0,0.71266552]
[1723747387301,0.00090421,57871.0,57870.0,1.18948027]
[1723747387498,0.00090421,57871.0,57870.0,1.80663681]
[1723747387713,0.00090421,57871.0,57870.0,1.46103481]
[1723747387913,0.00090421,57871.0,57870.0,1.02965554]
[1723747388167,0.00090421,57871.0,57870.0,1.37525754]
[1723747388322,0.00090421,57871.0,57870.0,1.72085954]
[1723747388522,0.00090421,57871.0,57870.0,2.06646154]
[1723747388783,0.00090421,57878.0,57871.0,0.6009]
[1723747388992,0.00904201,57893.0,57891.0,0.172738]
[1723747389129,0.00904201,57893.0,57891.0,0.272738]
[1723747389332,0.00904201,57893.0,57891.0,1.39066854]
[1723747390026,0.00904201,57893.0,57891.0,1.42366854]
[1723747390239,0.009053,57902.0,57901.0,0.172708]
[1723747390441,0.009053,57902.0,57901.0,1.39057954]
[1723747391143,0.009053,57902.0,57901.0,1.73599654]
[1723747391701,0.009053,57902.0,57901.0,1.74799654]
[1723747392465,0.00904201,57920.0,57902.0,0.518116]
[1723747392712,0.00904201,57920.0,57902.0,2.13416981]
[1723747393070,0.00904201,57920.0,57902.0,2.15716981]
[1723747393300,0.00904201,57920.0,57911.0,0.863392]
[1723747393501,0.00904201,57920.0,57911.0,1.78862381]
[1723747393707,0.00904201,57920.0,57911.0,2.13398081]
[1723747393908,0.00904201,57920.0,57911.0,1.78862381]
[1723747394118,0.00904201,57920.0,57911.0,1.70284654]
[1723747394541,0.00904201,57920.0,57911.0,1.7521906]
[1723747394750,0.00904201,57920.0,57911.0,2.1205476]
[1723747395169,0.00904201,57920.0,57918.0,1.793802]
[1723747395383,0.00904201,57929.0,57928.0,0.86314]
[1723747395599,0.00904201,57929.0,57928.0,1.71989454]
[1723747395869,0.00023552,57938.0,57928.0,1.71989454]
[1723747395871,0.51489914,57938.0,57930.0,1.44831]
[1723747396077,0.00023552,57938.0,57930.0,2.06510854]
[1723747396468,0.00023552,57938.0,57930.0,1.71986454]
[1723747396820,0.00023552,57938.0,57930.0,1.7692086]
[1723747397020,0.00023552,57938.0,57930.0,1.73386454]
[1723747397303,0.00023552,57938.0,57930.0,1.71986454]
[1723747397513,0.00023552,57938.0,57930.0,1.37462054]
[1723747397724,0.00023552,57938.0,57930.0,1.38862054]
[1723747397935,0.0002,57939.0,57930.0,1.40262054]
[1723747398341,0.008671,57931.0,57930.0,1.40262054]
[1723747398558,0.008671,57931.0,57930.0,1.74786454]
[1723747398760,0.008671,57931.0,57930.0,1.40262054]
[1723747399088,0.008671,57931.0,57930.0,1.38862054]
[1723747399527,0.008671,57931.0,57930.0,0.87075454]
[1723747399779,0.008671,57931.0,57930.0,0.2947]
[1723747399923,0.0002,57939.0,57931.0,0.000382]
[1723747400134,0.0002,57939.0,57933.0,0.4045]
[1723747400327,0.0002,57939.0,57934.0,0.27155454]
[1723747400751,0.0002,57939.0,57935.0,0.172605]
[1723747401136,0.0002,57939.0,57934.0,0.61677054]
[1723747401137,0.0002,57939.0,57938.0,0.172598]
[1723747401319,0.0012,57939.0,57938.0,0.34415254]
[1723747401466,0.0002,57939.0,57938.0,0.17155454]
[1723747401665,0.0002,57939.0,57938.0,0.34415254]
[1723747402077,0.0002,57939.0,57938.0,0.17155454]
[1723747402506,0.0002,57939.0,57938.0,1.73894454]
[1723747402675,0.0002,57939.0,57938.0,1.80805454]
[1723747403308,0.0002,57939.0,57938.0,2.15425054]
[1723747403536,0.0002,57939.0,57938.0,2.17725054]
[1723747403741,0.0106916,57956.0,57945.0,0.4065]
[1723747403937,0.0106916,57956.0,57947.0,0.17257]
[1723747404148,0.0106916,57956.0,57949.0,0.1979]
[1723747404337,0.0106916,57956.0,57950.0,0.17155454]
[1723747405035,0.0126916,57956.0,57950.0,0.17155454]
[1723747405745,0.0126916,57956.0,57949.0,0.1979]
[1723747406165,0.0106916,57956.0,57949.0,0.36945454]
[1723747406367,0.0106916,57956.0,57948.0,0.1]
[1723747406368,0.0106916,57956.0,57950.0,0.77925454]
[1723747406580,0.0116916,57956.0,57951.0,0.1]
[1723747406801,0.0106916,57956.0,57955.0,1.53576881]
[1723747407039,0.0002,57979.0,57978.0,0.862395]
[1723747407246,0.0002,57979.0,57978.0,1.225137]
[1723747407456,0.0002,57979.0,57978.0,1.915053]
[1723747407657,0.0002,57979.0,57978.0,1.96439706]
[1723747407866,0.0002,57979.0,57978.0,1.97439706]
[1723747408088,0.0002,57979.0,57978.0,1.98739706]
[1723747408502,0.0002,57979.0,57978.0,2.5139096]
[1723747408704,0.00011,57994.0,57988.0,0.6012]
[1723747408914,0.00011,57994.0,57988.0,0.87275454]
[1723747409327,0.00011,57994.0,57988.0,2.13166974]
[1723747409529,0.00011,57994.0,57988.0,1.51692876]
[1723747409936,0.00011,57994.0,57988.0,1.86482676]
[1723747410069,0.00011,57994.0,57988.0,0.97958176]
[1723747410269,0.386331,57989.0,57981.0,0.1909]
[1723747410625,0.386331,57989.0,57988.0,0.014]
[1723747410626,0.903669,57989.0,57988.0,0.014]
[1723747410906,0.386331,57989.0,57978.0,0.023053]
[1723747411100,0.009031,57989.0,57988.0,0.014]
[1723747411511,0.009031,57989.0,57988.0,0.07349184]
[1723747411987,0.009031,57989.0,57988.0,2.02858938]
[1723747412256,0.009031,57989.0,57988.0,1.78369138]
[1723747412468,0.009031,57989.0,57988.0,1.44779338]
[1723747412695,0.010031,57989.0,57988.0,1.77969138]
[1723747412936,0.010031,57989.0,57988.0,0.89344638]
[1723747413154,0.010031,57989.0,57988.0,0.006]
[1723747413350,0.010031,57989.0,57988.0,0.015]
[1723747413551,0.009031,57989.0,57986.0,0.04561913]
[1723747413793,0.009031,57989.0,57988.0,0.05961913]